fUST/lending_fUST_20251023
["ID","MTS","AMOUNT","RATE_DAILY","PERIOD"]
[392138387,1761203451025,-500.0,0.00039452,7]
[392138388,1761203451035,-500.0,0.00039452,7]
[392138389,1761203451045,-500.0,0.00039452,7]
[392138390,1761203451055,-500.0,0.00039452,7]
[392138391,1761203451064,-1072.35,0.00039452,7]
[392138392,1761203451074,-500.0,0.00039452,7]
[392138393,1761203451085,-617.23265282,0.00039452,7]
[392138394,1761203451094,-500.0,0.00039452,2]
[392138395,1761203451104,-278.4095729,0.00039452,7]
[392138396,1761203451114,-500.0,0.00039452,7]
[392138397,1761203451124,-2330.71,0.00039452,3]
[392138398,1761203451135,-500.0,0.00039452,7]
[392138399,1761203451145,-1999.0,0.00039452,120]
[392138400,1761203451157,-531.88,0.00039452,7]
[392138401,1761203451167,-500.0,0.00039452,7]
[392138402,1761203451177,-5674.92,0.00039452,7]
[392138403,1761203451186,-500.0,0.00039452,7]
[392138404,1761203451196,-500.0,0.00039452,7]
[392138405,1761203451206,-547.39,0.00039452,2]
[392138406,1761203451215,-572.55758671,0.00039452,7]
[392138407,1761203451225,-500.0,0.00039452,7]
[392138408,1761203451234,-500.0,0.00039452,7]
[392138409,1761203451244,-730.79,0.00039452,7]
[392138410,1761203451254,-500.0,0.00039452,7]
[392138411,1761203451263,-153.088018,0.0003946,60]
[392138412,1761203451272,-479.01322318,0.0003962,2]
[392138413,1761203451282,-177.152362,0.00039654,2]
[392138414,1761203451291,-720.0,0.000397,90]
[392138415,1761203451301,-500.0,0.00039726,7]
[392138416,1761203451310,-500.0,0.00039726,7]
[392138417,1761203451319,-500.0,0.00039726,7]
[392138418,1761203451329,-168.44118542,0.00039726,7]
[392138419,1761203451338,-500.0,0.00039726,7]
[392138420,1761203451348,-1072.35,0.00039726,7]
[392138421,1761203451358,-500.0,0.00039726,7]
[392138422,1761203451368,-500.0,0.00039726,2]
[392138423,1761203451377,-156.52936726,0.00039726,7]
[392138424,1761203451387,-2330.71,0.00039726,3]
[392138425,1761203451398,-500.0,0.00039726,7]
[392138426,1761203451408,-531.88,0.00039726,7]
[392138427,1761203451418,-500.0,0.00039726,7]
[392138428,1761203451427,-5674.92,0.00039726,7]
[392138429,1761203451437,-500.0,0.00039726,7]
[392138430,1761203451446,-590.14122882,0.00039726,7]
[392138431,1761203451456,-547.39,0.00039726,2]
[392138432,1761203451466,-500.0,0.00039726,7]
[392138433,1761203451475,-628.38004428,0.00039726,7]
[392138434,1761203451485,-730.79,0.00039726,7]
[392138435,1761203451494,-500.0,0.00039726,7]
[392138436,1761203451503,-500.0,0.0004,7]
[392138437,1761203451513,-500.0,0.0004,7]
[392138438,1761203451523,-500.0,0.0004,7]
[392138439,1761203451532,-500.0,0.0004,7]
[392138440,1761203451542,-1072.35,0.0004,7]
[392138441,1761203451551,-500.0,0.0004,7]
[392138442,1761203451562,-208.79874467,0.0004,2]
[392138443,1761203451572,-2330.71,0.0004,3]
[392138444,1761203451582,-500.0,0.0004,7]
[392138445,1761203451591,-1999.0,0.0004,120]
[392138446,1761203451601,-531.88,0.0004,7]
[392138447,1761203451611,-500.0,0.0004,7]
[392138448,1761203451621,-5674.92,0.0004,7]
[392138449,1761203451631,-500.0,0.0004,7]
[392138450,1761203451641,-547.39,0.0004,2]
[392138451,1761203451650,-500.0,0.0004,7]
[392138452,1761203451661,-730.79,0.0004,7]
[392138453,1761203451670,-500.0,0.0004,7]
[392138454,1761203451680,-168.3137781,0.0004003,7]
[392138455,1761203451689,-153.088018,0.0004005,15]
[392138456,1761203451699,-161.61358,0.0004005,15]
[392138457,1761203451709,-151.057047,0.0004005,15]
[392138458,1761203451719,-406.16,0.000402,7]
[392138459,1761203451728,-153.088018,0.00040201,5]
[392138460,1761203451738,-161.61358,0.00040201,5]
[392138461,1761203451748,-151.057047,0.00040201,5]
[392138462,1761203451758,-500.0,0.00040273,7]
[392138463,1761203451768,-500.0,0.00040273,7]
[392138464,1761203451779,-191.82863254,0.00040273,7]
[392138465,1761203451788,-500.0,0.00040273,7]
[392138466,1761203451798,-1072.35,0.00040273,7]
[392138467,1761203451807,-500.0,0.00040273,7]
[392138468,1761203451817,-2330.71,0.00040273,3]
[392138469,1761203451826,-500.0,0.00040273,7]
[392138470,1761203451837,-531.88,0.00040273,7]
[392138471,1761203451847,-500.0,0.00040273,7]
[392138472,1761203451857,-5674.92,0.00040273,7]
[392138473,1761203451867,-500.0,0.00040273,7]
[392138474,1761203451877,-547.39,0.00040273,2]
[392138475,1761203451887,-271.68805757,0.00040273,7]
[392138476,1761203451897,-730.79,0.00040273,7]
[392138477,1761203451907,-500.0,0.00040273,7]
[392138478,1761203451916,-1245.5985936,0.00040547,2]
[392138479,1761203451926,-500.0,0.00040547,7]
[392138480,1761203451936,-500.0,0.00040547,7]
[392138481,1761203451946,-500.0,0.00040547,7]
[392138482,1761203451956,-1072.35,0.00040547,7]
[392138483,1761203451965,-500.0,0.00040547,7]
[392138484,1761203451975,-2330.71,0.00040547,3]
[392138485,1761203451985,-500.0,0.00040547,7]
[392138486,1761203451994,-1999.0,0.00040547,120]
[392138487,1761203452004,-531.88,0.00040547,7]
[392138488,1761203452013,-500.0,0.00040547,7]
[392138489,1761203452023,-5674.92,0.00040547,7]
[392138490,1761203452033,-500.0,0.00040547,7]
[392138491,1761203452043,-547.39,0.00040547,2]
[392138492,1761203452053,-730.79,0.00040547,7]
[392138493,1761203452063,-500.0,0.00040547,7]
[392138494,1761203452072,-184.40966425,0.000406,120]
[392138495,1761203452081,-207.94432923,0.000406,120]
[392138496,1761203452090,-1170.9474684,0.000406,120]
[392138497,1761203452100,-500.0,0.00040821,7]
[392138498,1761203452110,-500.0,0.00040821,7]
[392138499,1761203452119,-500.0,0.00040821,7]
[392138500,1761203452129,-1072.35,0.00040821,7]
[392138501,1761203452138,-500.0,0.00040821,7]
[392138502,1761203452148,-2330.71,0.00040821,3]
[392138503,1761203452161,-500.0,0.00040821,7]
[392138504,1761203452171,-531.88,0.00040821,7]
[392138505,1761203452180,-500.0,0.00040821,7]
[392138506,1761203452189,-5674.92,0.00040821,7]
[392138507,1761203452198,-500.0,0.00040821,7]
[392138508,1761203452208,-547.39,0.00040821,2]
[392138509,1761203452218,-730.79,0.00040821,7]
[392138510,1761203452228,-500.0,0.00040821,7]
[392138511,1761203452238,-7582.13,0.000409,14]
[392138512,1761203452248,-500.0,0.00041095,120]
[392138513,1761203452258,-500.0,0.00041095,120]
[392138514,1761203452267,-500.0,0.00041095,120]
[392138515,1761203452276,-1072.35,0.00041095,120]
[392138516,1761203452286,-500.0,0.00041095,120]
[392138517,1761203452296,-2330.71,0.00041095,3]
[392138518,1761203452305,-500.0,0.00041095,120]
[392138519,1761203452314,-1999.0,0.00041095,120]
[392138520,1761203452324,-531.88,0.00041095,120]
[392138521,1761203452333,-500.0,0.00041095,120]
[392138522,1761203452343,-5674.92,0.00041095,120]
[392138523,1761203452353,-500.0,0.00041095,120]
[392138524,1761203452362,-547.39,0.00041095,2]
[392138525,1761203452372,-730.79,0.00041095,120]
[392138526,1761203452382,-500.0,0.00041095,120]
[392138527,1761203452392,-366.0,0.00041169,120]
[392138528,1761203452403,-646.84263379,0.00041295,120]
[392138529,1761203452413,-500.0,0.00041369,120]
[392138530,1761203452424,-500.0,0.00041369,120]
[392138531,1761203452433,-500.0,0.00041369,120]
[392138532,1761203452443,-1072.35,0.00041369,120]
[392138533,1761203452453,-487.53087693,0.00041369,120]
[392138534,1761203452463,-2330.71,0.00041369,3]
[392138535,1761203452555,-540.18772348,0.00041369,120]
[392138536,1761203452566,-531.88,0.00041369,120]
[392138537,1761203452575,-500.0,0.00041369,120]
[392138538,1761203452585,-5674.92,0.00041369,120]
[392138539,1761203452595,-500.0,0.00041369,120]
[392138540,1761203452605,-547.39,0.00041369,2]
[392138541,1761203452615,-730.79,0.00041369,120]
[392138542,1761203452624,-500.0,0.00041369,120]
[392138543,1761203452634,-1144.19,0.000414,14]
[392138544,1761203452644,-153.088018,0.00041435,60]
[392138545,1761203452655,-161.61358,0.00041435,60]
[392138546,1761203452664,-153.088018,0.0004163,2]
[392138547,1761203452674,-161.61358,0.0004163,2]
[392138548,1761203452684,-151.057047,0.0004163,2]
[392138549,1761203452694,-500.0,0.00041643,120]
[392138550,1761203452704,-158.32923476,0.00041643,120]
[392138551,1761203452714,-500.0,0.00041643,120]
[392138552,1761203452723,-1072.35,0.00041643,120]
[392138553,1761203452733,-2330.71,0.00041643,3]
[392138554,1761203452743,-1999.0,0.00041643,120]
[392138555,1761203452752,-531.88,0.00041643,120]
[392138556,1761203452762,-500.0,0.00041643,120]
[392138557,1761203452771,-5674.92,0.00041643,120]
[392138558,1761203452781,-500.0,0.00041643,120]
[392138559,1761203452790,-547.39,0.00041643,2]
[392138560,1761203452800,-730.79,0.00041643,120]
[392138561,1761203452810,-500.0,0.00041643,120]
[392138562,1761203452819,-600.0,0.00041679,2]
[392138563,1761203452829,-1170.9474684,0.000418,120]
[392138564,1761203452839,-500.0,0.000418,60]
[392138565,1761203452849,-500.0,0.00041917,120]
[392138566,1761203452858,-500.0,0.00041917,120]
[392138567,1761203452868,-1072.35,0.00041917,120]
[392138568,1761203452877,-2330.71,0.00041917,3]
[392138569,1761203452887,-531.88,0.00041917,120]
[392138570,1761203452897,-500.0,0.00041917,120]
[392138571,1761203452907,-5674.92,0.00041917,120]
[392138572,1761203452916,-500.0,0.00041917,120]
[392138573,1761203452926,-547.39,0.00041917,2]
[392138574,1761203452935,-730.79,0.00041917,120]
[392138575,1761203452944,-500.0,0.00041917,120]
[392138576,1761203452954,-800.0,0.00042101,14]
[392138577,1761203452964,-603.48341486,0.00042114,2]
[392138578,1761203452973,-600.0,0.00042154,14]
[392138579,1761203452983,-800.0,0.00042167,14]
[392138580,1761203452992,-800.0,0.00042186,14]
[392138581,1761203453002,-500.0,0.00042191,120]
[392138582,1761203453011,-500.0,0.00042191,120]
[392138583,1761203453021,-1072.35,0.00042191,120]
[392138584,1761203453031,-2330.71,0.00042191,3]
[392138585,1761203453040,-1999.0,0.00042191,120]
[392138586,1761203453052,-531.88,0.00042191,120]
[392138587,1761203453062,-500.0,0.00042191,120]
[392138588,1761203453081,-5674.92,0.00042191,120]
[392138589,1761203453092,-500.0,0.00042191,120]
[392138590,1761203453101,-547.39,0.00042191,2]
[392138591,1761203453111,-730.79,0.00042191,120]
[392138592,1761203453121,-500.0,0.00042191,120]
[392138593,1761203453130,-479.01322318,0.00042195,28]
[392138594,1761203453140,-888.72377456,0.00042222,14]
[392138595,1761203453150,-800.0,0.00042277,14]
[392138596,1761203453162,-800.0,0.00042286,14]
[392138597,1761203453172,-800.0,0.00042293,14]
[392138598,1761203453182,-800.0,0.00042297,14]
[392138599,1761203453191,-800.0,0.00042303,14]
[392138600,1761203453200,-800.0,0.00042321,14]
[392138601,1761203453210,-500.0,0.00042348,60]
[392138602,1761203453220,-500.0,0.0004244,60]
[392138603,1761203453229,-500.0,0.0004244,30]
[392138604,1761203453239,-500.0,0.00042465,120]
[392138605,1761203453249,-500.0,0.00042465,120]
[392138606,1761203453259,-1072.35,0.00042465,120]
[392138607,1761203453269,-2330.71,0.00042465,3]
[392138608,1761203453279,-531.88,0.00042465,120]
[392138609,1761203453288,-500.0,0.00042465,120]
[392138610,1761203453298,-5674.92,0.00042465,120]
[392138611,1761203453308,-500.0,0.00042465,120]
[392138612,1761203453319,-547.39,0.00042465,2]
[392138613,1761203453328,-730.79,0.00042465,120]
[392138614,1761203453338,-603.7190622,0.00042465,120]
[392138615,1761203453348,-602.57258156,0.00042739,120]
[392138616,1761203453359,-500.0,0.00042739,120]
[392138617,1761203453369,-1072.35,0.00042739,120]
[392138618,1761203453379,-2330.71,0.00042739,3]
[392138619,1761203453389,-1999.0,0.00042739,120]
[392138620,1761203453399,-531.88,0.00042739,120]
[392138621,1761203453408,-504.91442219,0.00042739,120]
[392138622,1761203453418,-5674.92,0.00042739,120]
[392138623,1761203453428,-500.0,0.00042739,120]
[392138624,1761203453437,-547.39,0.00042739,2]
[392138625,1761203453448,-730.79,0.00042739,120]
[392138626,1761203453458,-445.88095567,0.00042753,3]
[392138627,1761203453466,-240.43601875,0.00042753,3]
[392138628,1761203453475,-500.0,0.00042896,60]
[392138629,1761203453484,-50141.0,0.00043,120]
[392138630,1761203453494,-157.0,0.00043,90]
[392138631,1761203453503,-500.0,0.00043013,120]
[392138632,1761203453513,-1072.35,0.00043013,120]
[392138633,1761203453523,-2330.71,0.00043013,3]
[392138634,1761203453533,-531.88,0.00043013,120]
[392138635,1761203453542,-5674.92,0.00043013,120]
[392138636,1761203453552,-500.0,0.00043013,120]
[392138637,1761203453563,-547.39,0.00043013,2]
[392138638,1761203453573,-730.79,0.00043013,120]
[392138639,1761203453582,-1170.9474684,0.000431,120]
[392138640,1761203453592,-393.0,0.00043169,120]
[392138641,1761203453602,-930.94752534,0.0004328,30]
[392138642,1761203453612,-500.0,0.00043287,120]
[392138643,1761203453622,-1072.35,0.00043287,120]
[392138644,1761203453633,-2330.71,0.00043287,3]
[392138645,1761203453642,-1808.11086663,0.00043287,120]
[392138646,1761203453653,-531.88,0.00043287,120]
[392138647,1761203453663,-5674.92,0.00043287,120]
[392138648,1761203453672,-500.0,0.00043287,120]
[392138649,1761203453682,-547.39,0.00043287,2]
[392138650,1761203453692,-730.79,0.00043287,120]
[392138651,1761203453701,-250.0,0.000434,30]
[392138652,1761203453711,-250.0,0.000434,30]
[392138653,1761203453721,-250.0,0.000434,30]
[392138654,1761203453731,-250.0,0.000434,30]
[392138655,1761203453740,-170.6,0.000434,30]
[392138656,1761203453751,-153.088018,0.000434,15]
[392138657,1761203453761,-161.61358,0.000434,15]
[392138658,1761203453771,-300.0,0.000434,12]
[392138659,1761203453782,-300.0,0.000434,12]
[392138660,1761203453791,-300.0,0.000434,12]
[392138661,1761203453801,-194.688119,0.000434,2]
[392138662,1761203453810,-151.057047,0.000434,15]
[392138663,1761203453820,-300.0,0.000434,12]
[392138664,1761203453830,-300.0,0.000434,12]
[392138665,1761203453840,-300.0,0.000434,12]
[392138666,1761203453850,-300.0,0.000434,12]
[392138667,1761203453860,-300.0,0.000434,12]
[392138668,1761203453870,-300.0,0.000434,12]
[392138669,1761203453880,-1089.3573547,0.00043408,2]
[392138670,1761203453891,-153.088018,0.0004341,60]
[392138671,1761203453901,-161.61358,0.0004341,60]
[392138672,1761203453911,-250.0,0.00043443,30]
[392138673,1761203453922,-250.0,0.00043443,30]
[392138674,1761203453932,-250.0,0.00043443,30]
[392138675,1761203453942,-250.0,0.00043443,30]
[392138676,1761203453952,-250.0,0.00043443,30]
[392138677,1761203453962,-250.0,0.00043443,30]
[392138678,1761203453972,-250.0,0.00043443,30]
[392138679,1761203453982,-250.0,0.00043443,30]
[392138680,1761203453992,-250.0,0.00043443,30]
[392138681,1761203454002,-250.0,0.00043443,30]
[392138682,1761203454011,-250.0,0.00043443,30]
[392138683,1761203454021,-250.0,0.00043443,30]
[392138684,1761203454032,-250.0,0.00043443,30]
[392138685,1761203454041,-250.0,0.00043443,30]
[392138686,1761203454051,-250.0,0.00043443,30]
[392138687,1761203454061,-659564.1199,0.00043444,30]
[392138688,1761203454070,-767116.3889,0.00043444,30]
[392138689,1761203454079,-151.0,0.00043444,120]
[392138690,1761203454089,-247.054077,0.00043444,120]
[392138691,1761203454097,-151.0,0.00043444,120]
[392138692,1761203454107,-151.0,0.00043444,120]
[392138693,1761203454117,-152.094698,0.00043444,120]
[392138694,1761203454129,-151.0,0.00043444,120]
[392138695,1761203454138,-151.0,0.00043444,120]
[392138696,1761203454148,-151.0,0.00043444,120]
[392138697,1761203454161,-151.0,0.00043444,120]
[392138698,1761203454171,-151.0,0.00043444,120]
[392138699,1761203454182,-151.0,0.00043444,120]
[392138700,1761203454191,-292.227657,0.00043444,120]
[392138701,1761203454202,-151.0,0.00043444,120]
[392138702,1761203454211,-151.0,0.00043444,120]
[392138703,1761203454221,-151.0,0.00043444,120]
[392138704,1761203454231,-152.612677,0.00043444,120]
[392138705,1761203454241,-153.088018,0.00043444,30]
[392138706,1761203454251,-153.088018,0.00043444,30]
[392138707,1761203454261,-153.088018,0.00043444,30]
[392138708,1761203454271,-153.088018,0.00043444,30]
[392138709,1761203454280,-151.0,0.00043444,120]
[392138710,1761203454289,-151.0,0.00043444,120]
[392138711,1761203454299,-161.61358,0.00043444,30]
[392138712,1761203454308,-161.61358,0.00043444,30]
[392138713,1761203454318,-155.841694,0.00043444,120]
[392138714,1761203454328,-151.0,0.00043444,120]
[392138715,1761203454338,-151.0,0.00043444,120]
[392138716,1761203454349,-158.445455,0.00043444,120]
[392138717,1761203454359,-151.0,0.00043444,120]
[392138718,1761203454369,-151.0,0.00043444,120]
[392138719,1761203454379,-151.0,0.00043444,120]
[392138720,1761203454391,-151.0,0.00043444,120]
[392138721,1761203454401,-151.0,0.00043444,120]
[392138722,1761203454411,-151.0,0.00043444,120]
[392138723,1761203454421,-151.0,0.00043444,120]
[392138724,1761203454431,-151.0,0.00043444,120]
[392138725,1761203454440,-151.0,0.00043444,120]
[392138726,1761203454449,-151.0,0.00043444,120]
[392138727,1761203454458,-151.0,0.00043444,120]
[392138728,1761203454468,-151.0,0.00043444,120]
[392138729,1761203454477,-238.384595,0.00043444,120]
[392138730,1761203454487,-151.0,0.00043444,120]
[392138731,1761203454496,-157.833522,0.00043444,120]
[392138732,1761203454506,-151.0,0.00043444,120]
[392138733,1761203454516,-156.338591,0.00043444,120]
[392138734,1761203454526,-151.0,0.00043444,120]
[392138735,1761203454535,-151.0,0.00043444,120]
[392138736,1761203454545,-152.63346,0.00043444,120]
[392138737,1761203454554,-151.0,0.00043444,120]
[392138738,1761203454564,-151.0,0.00043444,120]
[392138739,1761203454574,-151.0,0.00043444,120]
[392138740,1761203454584,-151.0,0.00043444,120]
[392138741,1761203454593,-151.0,0.00043444,120]
[392138742,1761203454603,-151.0,0.00043444,120]
[392138743,1761203454614,-151.0,0.00043444,15]
[392138744,1761203454624,-151.0,0.00043444,15]
[392138745,1761203454633,-151.0,0.00043444,15]
[392138746,1761203454643,-161.90676,0.00043444,15]
[392138747,1761203454653,-151.0,0.00043444,120]
[392138748,1761203454730,-212.610844,0.00043444,120]
[392138749,1761203454747,-151.0,0.00043444,120]
[392138750,1761203454756,-151.0,0.00043444,120]
[392138751,1761203454765,-151.0,0.00043444,120]
[392138752,1761203454775,-224.453893,0.00043444,120]
[392138753,1761203454785,-223.516983,0.00043444,120]
[392138754,1761203454794,-223.516983,0.00043444,120]
[392138755,1761203454804,-152.814747,0.00043444,120]
[392138756,1761203454813,-223.516983,0.00043444,120]
[392138757,1761203454823,-223.516983,0.00043444,120]
[392138758,1761203454832,-826.061316,0.00043444,120]
[392138759,1761203454841,-826.061316,0.00043444,120]
[392138760,1761203454851,-223.516983,0.00043444,120]
[392138761,1761203454861,-826.061316,0.00043444,120]
[392138762,1761203454870,-826.061316,0.00043444,120]
[392138763,1761203454880,-223.516983,0.00043444,120]
[392138764,1761203454890,-826.061316,0.00043444,120]
[392138765,1761203454899,-223.516983,0.00043444,120]
[392138766,1761203454910,-826.061316,0.00043444,120]
[392138767,1761203454919,-223.516983,0.00043444,120]
[392138768,1761203454929,-826.061316,0.00043444,120]
[392138769,1761203454939,-826.061316,0.00043444,120]
[392138770,1761203454948,-155.131548,0.00043444,120]
[392138771,1761203454958,-496.984612,0.00043444,120]
[392138772,1761203454967,-496.984612,0.00043444,120]
[392138773,1761203454976,-496.984612,0.00043444,120]
[392138774,1761203454985,-496.984612,0.00043444,120]
[392138775,1761203454995,-496.984612,0.00043444,120]
[392138776,1761203455004,-496.984612,0.00043444,120]
[392138777,1761203455014,-496.984612,0.00043444,120]
[392138778,1761203455024,-496.984612,0.00043444,120]
[392138779,1761203455033,-154.533166,0.00043444,120]
[392138780,1761203455043,-173.899356,0.00043444,120]
[392138781,1761203455053,-173.899356,0.00043444,120]
[392138782,1761203455062,-173.899356,0.00043444,120]
[392138783,1761203455071,-173.899356,0.00043444,120]
[392138784,1761203455081,-173.899356,0.00043444,120]
[392138785,1761203455091,-173.899356,0.00043444,120]
[392138786,1761203455101,-173.899356,0.00043444,120]
[392138787,1761203455111,-173.899356,0.00043444,120]
[392138788,1761203455121,-151.0,0.00043444,120]
[392138789,1761203455131,-151.0,0.00043444,120]
[392138790,1761203455140,-151.0,0.00043444,120]
[392138791,1761203455150,-193.367062,0.00043444,120]
[392138792,1761203455164,-151.0,0.00043444,120]
[392138793,1761203455173,-151.0,0.00043444,120]
[392138794,1761203455184,-158.622912,0.00043444,120]
[392138795,1761203455193,-151.0,0.00043444,120]
[392138796,1761203455203,-151.0,0.00043444,120]
[392138797,1761203455214,-151.0,0.00043444,120]
[392138798,1761203455224,-151.0,0.00043444,120]
[392138799,1761203455234,-183.477268,0.00043444,120]
[392138800,1761203455243,-151.0,0.00043444,120]
[392138801,1761203455253,-154.03268,0.00043444,120]
[392138802,1761203455262,-151.0,0.00043444,120]
[392138803,1761203455272,-151.0,0.00043444,120]
[392138804,1761203455282,-151.0,0.00043444,120]
[392138805,1761203455292,-151.0,0.00043444,120]
[392138806,1761203455302,-151.0,0.00043444,120]
[392138807,1761203455311,-151.0,0.00043444,120]
[392138808,1761203455321,-228.164721,0.00043444,120]
[392138809,1761203455333,-199.914399,0.00043444,120]
[392138810,1761203455343,-199.914399,0.00043444,120]
[392138811,1761203455353,-5686.728124,0.00043444,120]
[392138812,1761203455363,-151.057047,0.00043444,30]
[392138813,1761203455372,-151.057047,0.00043444,30]
[392138814,1761203455383,-5686.728124,0.00043444,120]
[392138815,1761203455393,-151.057047,0.00043444,30]
[392138816,1761203455403,-151.057047,0.00043444,30]
[392138817,1761203455412,-199.914399,0.00043444,120]
[392138818,1761203455422,-151.057047,0.00043444,30]
[392138819,1761203455432,-199.914399,0.00043444,120]
[392138820,1761203455442,-5686.728124,0.00043444,120]
[392138821,1761203455453,-5686.728124,0.00043444,120]
[392138822,1761203455463,-199.914399,0.00043444,120]
[392138823,1761203455473,-5686.728124,0.00043444,120]
[392138824,1761203455484,-199.914399,0.00043444,120]
[392138825,1761203455494,-5686.728124,0.00043444,120]
[392138826,1761203455503,-200.0,0.00043486,120]
[392138827,1761203455514,-25880.0142361,0.000435,120]
[392138828,1761203455524,-500.0,0.00043561,120]
[392138829,1761203455534,-1072.35,0.00043561,120]
[392138830,1761203455543,-2330.71,0.00043561,3]
[392138831,1761203455553,-531.88,0.00043561,120]
[392138832,1761203455562,-5674.92,0.00043561,120]
[392138833,1761203455571,-500.0,0.00043561,120]
[392138834,1761203455581,-547.39,0.00043561,2]
[392138835,1761203455591,-730.79,0.00043561,120]
[392138836,1761203455600,-864.0,0.0004367,90]
[392138837,1761203455610,-1000.0,0.0004369,7]
[392138838,1761203455621,-1500.0,0.000438,2]
[392138839,1761203455632,-1500.0,0.000438,2]
[392138840,1761203455642,-1500.0,0.000438,2]
[392138841,1761203455652,-1500.0,0.000438,2]
[392138842,1761203455661,-1500.0,0.000438,2]
[392138843,1761203455671,-1500.0,0.000438,2]
[392138844,1761203455680,-1500.0,0.000438,2]
[392138845,1761203455690,-1500.0,0.000438,2]
[392138846,1761203455699,-1917.34,0.000438,2]
[392138847,1761203455709,-1500.0,0.000438,2]
[392138848,1761203455718,-1500.0,0.000438,2]
[392138849,1761203455727,-1000.0,0.000438,120]
[392138850,1761203455738,-300.0,0.000438,14]
[392138851,1761203455748,-300.0,0.000438,14]
[392138852,1761203455757,-300.0,0.000438,14]
[392138853,1761203455767,-500.0,0.00043835,120]
[392138854,1761203455777,-1072.35,0.00043835,120]
[392138855,1761203455787,-2330.71,0.00043835,3]
[392138856,1761203455796,-531.88,0.00043835,120]
[392138857,1761203455806,-5674.92,0.00043835,120]
[392138858,1761203455815,-500.0,0.00043835,120]
[392138859,1761203455824,-547.39,0.00043835,2]
[392138860,1761203455833,-730.79,0.00043835,120]
[392138861,1761203455843,-539447.77010936,0.000439,2]
[392138862,1761203455852,-151.0,0.000439,120]
[392138863,1761203455861,-151.0,0.000439,120]
[392138864,1761203455871,-151.0,0.000439,120]
[392138865,1761203455880,-244.236153,0.000439,120]
[392138866,1761203455890,-168.960833,0.000439,120]
[392138867,1761203455899,-151.0,0.000439,120]
[392138868,1761203455910,-151.0,0.000439,120]
[392138869,1761203455919,-151.0,0.000439,120]
[392138870,1761203455929,-151.0,0.000439,120]
[392138871,1761203455939,-151.0,0.000439,120]
[392138872,1761203455948,-151.0,0.000439,120]
[392138873,1761203455958,-151.0,0.000439,120]
[392138874,1761203455967,-151.0,0.000439,120]
[392138875,1761203455977,-151.0,0.000439,120]
[392138876,1761203455987,-151.0,0.000439,120]
[392138877,1761203455998,-151.0,0.000439,120]
[392138878,1761203456009,-151.0,0.000439,15]
[392138879,1761203456018,-151.0,0.000439,120]
[392138880,1761203456027,-223.516983,0.000439,120]
[392138881,1761203456036,-223.516983,0.000439,120]
[392138882,1761203456046,-826.061316,0.000439,120]
[392138883,1761203456056,-223.516983,0.000439,120]
[392138884,1761203456065,-826.061316,0.000439,120]
[392138885,1761203456075,-826.061316,0.000439,120]
[392138886,1761203456085,-223.51698,0.000439,120]